bitfinex-derivatives/quotes_SOLF0:USTF0_20250409
["timestamp","ask_amount","ask_price","bid_price","bid_amount"]
[1744187129307,38.86,108.24,108.16,9.2492]
[1744187129606,0.05846598,108.18,108.16,0.05872502]
[1744187129806,0.05840561,108.18,108.15,47.9243]
[1744187130008,0.05840561,108.18,108.16,0.0681301]
[1744187130703,9.2491,108.17,108.16,0.0681301]
[1744187131107,9.252,108.14,108.1,488.42]
[1744187131308,38.86,108.18,108.09,91.37710353]
[1744187131509,87.11180353,108.18,108.09,4.2653]
[1744187131808,9.2538,108.12,108.09,4.2653]
[1744187132209,9.2545,108.11,108.09,0.06015292]
[1744187132405,0.07102243,108.12,108.09,0.06015292]
[1744187132599,38.93102243,108.12,108.0,938.47180353]
[1744187132807,38.86,108.12,108.01,4.3539]
[1744187133105,527.28,108.12,108.04,9.2596]
[1744187133300,488.42,108.12,108.01,4.3539]
[1744187133508,38.86,108.14,108.05,48.25180353]
[1744187133709,0.06671763,108.08,108.06,38.86]
[1744187133909,9.2529,108.13,108.06,43.2139]
[1744187134305,38.86,108.14,108.06,43.2139]
[1744187134908,0.06736481,108.11,108.09,0.06189458]
[1744187135313,0.06736481,108.11,108.09,9.31739458]
[1744187135514,0.06736481,108.11,108.09,0.06189458]
[1744187135717,0.06736481,108.11,108.03,635.11180353]
[1744187135718,38.92736481,108.11,108.03,635.11180353]
[1744187135907,38.86,108.11,108.04,9.2598]
[1744187137012,9.32679478,108.09,108.06,0.06342174]
[1744187137314,0.07039478,108.09,108.06,0.06342174]
[1744187137515,9.2572,108.08,108.06,0.06342174]
[1744187137708,0.07039478,108.09,108.06,0.06342174]
[1744187137908,9.2573,108.08,108.06,0.06342174]
[1744187138918,0.07039478,108.09,108.06,0.06342174]
[1744187139317,0.07039478,108.09,108.06,43.31652174]
[1744187139615,0.07039478,108.09,108.08,9.2568]
[1744187140212,0.07039478,108.09,108.06,43.31652174]
[1744187140213,38.86,108.13,108.1,9.2543]
[1744187140614,38.86,108.13,108.09,9.2556]
[1744187140813,38.86,108.13,108.07,48.25180353]
[1744187141014,9.2557,108.1,108.06,47.8034]
[1744187141417,0.06963234,108.09,108.07,9.3248447]
[1744187141616,0.06963234,108.09,108.07,0.0676447]
[1744187142122,0.06963234,108.09,108.08,9.2568]
[1744187142322,0.06963234,108.09,108.07,0.0676447]
[1744187142621,9.32563234,108.09,108.07,0.0676447]
[1744187142819,0.06963234,108.09,108.07,0.0676447]
[1744187143209,0.06963234,108.09,108.08,9.2568]
[1744187145516,0.06963234,108.09,108.07,48.31944823]
[1744187145517,0.06963234,108.09,108.07,57.57664823]
[1744187145721,0.06963234,108.09,108.07,0.0676447]
[1744187146322,0.06963234,108.09,108.08,9.2568]
[1744187149830,29.25,108.14,108.07,48.31944823]
[1744187150030,29.25,108.14,108.07,48.25180353]
[1744187150229,29.25,108.14,108.06,4.3931]
[1744187150526,29.25,108.14,108.07,9.2573]
[1744187150827,29.25,108.14,108.05,48.1189]
[1744187151032,0.06877616,108.12,108.02,43.0683]
[1744187151227,38.86,108.11,108.02,43.0683]
[1744187151425,9.2577,108.07,108.02,43.0683]
[1744187151620,38.86,108.11,108.02,43.0683]
[1744187152030,9.258,108.07,108.04,9.2598]
[1744187152232,9.258,108.07,108.05,0.06181919]
[1744187152729,0.06149102,108.07,108.05,0.06181919]
[1744187153631,0.06149102,108.07,108.05,87.17362272]
[1744187153934,68.11,108.14,108.05,87.17362272]
[1744187154122,68.11,108.14,108.07,48.25180353]
[1744187154324,9.2529,108.13,108.1,9.2543]
[1744187154628,68.11,108.14,108.08,38.86]
[1744187154927,9.2534,108.12,108.1,9.2548]
[1744187155135,0.07004626,108.12,108.04,48.25180353]
[1744187155335,38.86,108.11,108.04,48.25180353]
[1744187155736,38.86,108.11,108.03,43.5173]
[1744187156234,38.86,108.11,108.04,9.2596]
[1744187156542,9.2581,108.07,108.06,0.06800013]
[1744187157040,0.06548088,108.08,108.06,0.06800013]
[1744187157241,9.32258088,108.08,108.06,0.06800013]
[1744187157741,9.2577,108.07,108.06,0.06800013]
[1744187165335,9.2603,108.04,108.02,9.2615]
[1744187165640,38.94548088,108.08,108.01,48.25180353]
[1744187165641,38.88,108.08,108.01,48.25180353]
[1744187165843,38.88,108.08,108.05,9.2589]
[1744187166143,9.2577,108.07,108.05,9.2589]
[1744187166338,38.88,108.08,108.05,9.2589]
[1744187166540,9.31674532,108.07,108.05,0.05875143]
[1744187166839,0.05874532,108.07,108.05,0.05875143]
[1744187167046,9.2585,108.06,108.05,0.05875143]
[1744187167343,0.05874532,108.07,108.05,0.05875143]
[1744187167941,0.05874532,108.07,108.05,9.31745143]
[1744187168143,9.31674532,108.07,108.05,9.31745143]
[1744187170652,9.2585,108.06,108.05,0.05875143]
[1744187173054,0.05874532,108.07,108.0,4.623]
[1744187173243,38.88,108.08,108.0,4.623]
[1744187173556,38.88,108.08,108.01,9.2625]
[1744187173851,38.88,108.08,108.0,4.623]
[1744187174154,0.0651589,108.05,108.03,0.06886597]
[1744187175052,9.3248589,108.05,108.03,0.06886597]
[1744187175253,38.9451589,108.05,107.96,38.88]
[1744187175457,68.48967319,108.05,107.96,43.1228]
[1744187175652,9.2416,108.04,107.98,9.2649]
[1744187176154,4.5657,108.03,107.98,9.2649]
[1744187176353,38.95023991,108.02,108.0,0.06130573]
[1744187177247,0.07023991,108.02,108.0,0.06130573]
[1744187177652,0.07023991,108.02,108.01,9.2628]
[1744187178654,0.07023991,108.02,108.0,9.32430573]
[1744187178855,0.07023991,108.02,108.0,0.06130573]
[1744187179054,0.07023991,108.02,108.01,9.2628]
[1744187179253,0.07023991,108.02,108.0,0.06130573]
[1744187180049,0.07023991,108.02,108.0,9.32460573]
[1744187181149,0.07023991,108.02,108.0,0.06130573]
[1744187181651,0.07023991,108.02,108.01,9.2628]
[1744187181848,0.07023991,108.02,108.0,0.06130573]
[1744187183258,0.07023991,108.02,108.0,9.32440573]
[1744187183456,48.21233991,108.02,108.0,9.32440573]
[1744187183863,38.95023991,108.02,108.01,9.2628]
[1744187184157,0.07023991,108.02,108.01,9.2628]
[1744187184354,12.6812373,108.11,108.01,48.13247319]
[1744187184560,50.7249492,108.11,108.04,29.60967319]
[1744187184755,50.7249492,108.11,108.02,33.98527319]
[1744187185162,50.7249492,108.11,108.02,4.3756]
[1744187185553,0.06539862,108.08,108.05,0.0620592]
[1744187186048,0.06539862,108.08,108.06,9.258]
[1744187186859,0.06539862,108.08,108.07,9.2577]
[1744187188264,4.4874,108.12,108.11,9.2542]
[1744187188560,51.1832373,108.14,108.11,9.2542]
[1744187188865,41.9312373,108.14,108.1,9.2546]
[1744187189361,41.9312373,108.14,108.08,9.2562]
[1744187189564,0.05956921,108.13,108.11,0.06026248]
[1744187189950,0.05956921,108.13,108.12,9.2534]
[1744187190459,0.05956921,108.13,108.11,9.31406248]
[1744187190858,0.05956921,108.13,108.11,0.06026248]
[1744187191761,0.05956921,108.13,108.11,9.31416248]
[1744187192163,0.05956921,108.13,108.11,0.06026248]
[1744187192759,9.31256921,108.13,108.11,0.06026248]
[1744187192958,0.05956921,108.13,108.11,0.06026248]
[1744187193166,0.05956921,108.13,108.07,38.88]
[1744187193355,9.2547,108.11,108.07,48.1369]
[1744187193559,9.2547,108.11,108.07,38.88]
[1744187194263,0.0677932,108.1,108.08,0.0616142]
[1744187194461,0.0677932,108.1,108.08,9.3183142]
[1744187194864,0.0677932,108.1,108.08,0.0616142]
[1744187195064,0.0677932,108.1,108.09,9.2559]
[1744187196273,13.8785,108.14,108.11,9.2539]
[1744187196466,9.2522,108.14,108.11,9.2539]
[1744187196768,9.2513,108.15,108.12,9.253]
[1744187197063,4.6422,108.17,108.09,38.86]
[1744187197266,4.6422,108.17,108.1,4.4404]
[1744187197462,0.07004821,108.14,108.12,0.06170971]
[1744187197866,9.2525,108.13,108.12,0.06170971]
[1744187198968,9.32214821,108.14,108.12,0.06170971]
[1744187199168,0.07004821,108.14,108.12,0.06170971]
[1744187199568,9.2525,108.13,108.12,0.06170971]
[1744187200669,0.07004821,108.14,108.12,0.06170971]
[1744187201664,9.2525,108.13,108.12,0.06170971]
[1744187201858,29.6797214,108.14,108.04,29.60967319]
[1744187202062,38.98707319,108.12,108.03,47.7164]
[1744187202271,9.2574,108.08,108.05,9.259]
[1744187202569,38.86,108.11,108.03,47.7164]
[1744187202868,9.2565,108.09,108.06,9.2582]
[1744187203168,0.07029362,108.08,108.06,9.32434053]
[1744187203370,9.32749362,108.08,108.06,0.06614053]
[1744187203670,0.07029362,108.08,108.06,0.06614053]
[1744187203867,9.2577,108.07,108.06,0.06614053]
[1744187204473,38.93029362,108.08,108.03,9.261]
[1744187204474,9.259,108.06,108.03,9.261]
[1744187204975,48.1174,108.08,108.02,38.86]
[1744187205270,38.86,108.08,108.02,38.86]
[1744187205471,48.1173,108.08,108.02,38.86]
[1744187205675,0.06094058,108.06,108.04,0.07066738]
[1744187206071,0.06094058,108.06,108.04,9.33056738]
[1744187206468,0.06094058,108.06,108.04,0.07066738]
[1744187206670,0.06094058,108.06,108.04,9.33046738]
[1744187206972,0.06094058,108.06,108.04,0.07066738]
[1744187207169,9.31984058,108.06,108.04,0.07066738]
[1744187207367,0.06094058,108.06,108.04,0.07066738]
[1744187207777,9.2594,108.05,108.04,0.07066738]
[1744187209467,9.2622,108.02,107.98,4.5488]
[1744187209673,38.86,108.05,107.98,13.8137]
[1744187209874,4.5393,108.04,107.98,4.5488]
[1744187210072,9.2625,108.02,107.98,4.5488]
[1744187210279,4.5393,108.04,107.97,43.3117]
[1744187210674,0.07096822,108.02,107.99,0.05997806]
[1744187211180,38.93096822,108.02,107.99,0.05997806]
[1744187211778,9.2637,108.0,107.99,0.05997806]
[1744187211976,38.93096822,108.02,107.92,29.60967319]
[1744187212175,561.98727319,108.01,107.9,38.86]
[1744187212481,29.60967319,107.99,107.92,9.2699]
[1744187212674,43.5803,107.98,107.92,9.2699]
[1744187213070,9.2684,107.95,107.9,38.86]
[1744187213376,0.05887379,107.96,107.94,0.06582119]
[1744187213576,9.2675,107.96,107.9,38.86]
[1744187213777,9.32677471,107.96,107.93,9.2692]
[1744187214282,9.32677471,107.96,107.93,9.33842581]
[1744187214479,0.05927471,107.96,107.93,9.33842581]
[1744187214781,9.268,107.95,107.93,0.06922581]
[1744187215383,38.88,107.95,107.86,29.60967319]
[1744187215571,38.88,107.95,107.86,68.48967319]
[1744187215976,9.2713,107.92,107.88,9.2735]
[1744187216175,38.88,107.95,107.86,68.48967319]
[1744187216376,4.562,107.94,107.86,68.48967319]
[1744187216676,0.05960547,107.92,107.89,0.0594203]
[1744187217185,9.33080547,107.92,107.89,0.0594203]
[1744187217483,0.05960547,107.92,107.89,0.0594203]
[1744187218278,0.05960547,107.92,107.9,9.2717]
[1744187218783,0.05960547,107.92,107.91,9.2714]
[1744187221688,9.33030547,107.92,107.9,9.272]
[1744187221887,0.05960547,107.92,107.89,38.9394203]
[1744187222182,0.05960547,107.92,107.89,0.0594203]
[1744187222388,9.2718,107.91,107.89,0.0594203]
[1744187223988,9.2722,107.9,107.89,0.0594203]
[1744187225482,9.2752,107.87,107.82,29.60967319]
[1744187225793,8.9686,107.91,107.85,9.2759]
[1744187225994,8.9686,107.91,107.83,43.3247]
[1744187226195,9.2735,107.89,107.86,9.2749]
[1744187226491,9.2735,107.89,107.83,43.3247]
[1744187226691,0.05955739,107.89,107.86,9.33909556]
[1744187227092,0.05955739,107.89,107.86,0.06379556]
[1744187227390,9.33305739,107.89,107.86,0.06379556]
[1744187227596,0.05955739,107.89,107.86,0.06379556]
[1744187228297,9.2743,107.88,107.86,9.33909556]
[1744187228798,9.33315739,107.89,107.86,9.33909556]
[1744187229093,0.05955739,107.89,107.86,9.33909556]
[1744187229298,0.05955739,107.89,107.88,9.274]
[1744187230104,0.05955739,107.89,107.86,38.98379556]
[1744187230493,9.33345739,107.89,107.86,48.25909556]
[1744187230689,9.33345739,107.89,107.86,38.98379556]
[1744187230998,9.2748,107.87,107.86,0.06379556]
[1744187231199,38.97955739,107.89,107.82,38.92]
[1744187231503,4.677,107.88,107.82,38.92]
[1744187231803,9.2772,107.85,107.82,9.2788]
[1744187232400,9.33931006,107.85,107.82,9.34375452]
[1744187232702,0.06211006,107.85,107.82,0.06495452]
[1744187232901,38.92,107.89,107.82,68.59462771]
[1744187233102,38.92,107.89,107.82,68.52967319]
[1744187233398,4.4621,107.91,107.87,9.2745]
[1744187233804,9.2727,107.9,107.87,9.2745]
[1744187233999,43.3309,107.92,107.88,9.2735]
[1744187234201,0.05929911,107.9,107.87,0.06488727]
[1744187234495,9.33189911,107.9,107.87,9.33908727]
[1744187234804,9.33189911,107.9,107.87,0.06488727]
[1744187235102,9.2732,107.89,107.87,0.06488727]
[1744187235303,0.05929911,107.9,107.87,0.06488727]
[1744187236400,38.92,107.89,107.87,0.06488727]
[1744187236606,43.3498,107.89,107.87,0.06488727]
[1744187236801,43.3498,107.89,107.82,9.2785]
[1744187237001,43.3498,107.89,107.81,9.1997]
[1744187237907,0.05975834,107.86,107.84,0.0672554]
[1744187238509,9.2765,107.85,107.84,0.0672554]
[1744187240410,9.28,107.81,107.79,9.2813]
[1744187240608,38.92,107.86,107.79,9.2813]
[1744187240914,38.92,107.86,107.78,38.92]
[1744187241207,38.92,107.86,107.8,9.2808]
[1744187241508,0.0587211,107.84,107.82,0.05940951]
[1744187241711,0.0587211,107.84,107.77,4.7685]
[1744187241712,38.92,107.83,107.77,4.7685]
[1744187242009,43.3349,107.83,107.76,4.4709]
[1744187243001,0.06247856,107.81,107.79,9.2816]
[1744187243200,0.06247856,107.81,107.78,0.06075567]
[1744187243401,9.34277856,107.81,107.78,9.34275567]
[1744187243605,0.06247856,107.81,107.78,0.06075567]
[1744187243811,0.06247856,107.81,107.78,38.98075567]
[1744187244198,0.06247856,107.81,107.8,9.2808]
[1744187245412,0.06247856,107.81,107.78,0.06075567]
[1744187245713,9.2812,107.8,107.78,9.34265567]
[1744187245909,0.06247856,107.81,107.78,9.34265567]
[1744187246412,9.34277856,107.81,107.79,9.2816]
[1744187246613,0.06247856,107.81,107.78,0.06075567]
[1744187246813,9.34297856,107.81,107.78,9.34275567]
[1744187247116,0.06247856,107.81,107.78,0.06075567]
[1744187248207,0.06247856,107.81,107.79,9.2812]
[1744187248402,0.06247856,107.81,107.78,0.06075567]
[1744187248710,0.06247856,107.81,107.8,9.2808]
[1744187249813,9.2769,107.85,107.79,29.60967319]
[1744187250014,38.94,107.86,107.79,29.60967319]
[1744187250409,9.2771,107.85,107.82,9.2783]
[1744187250614,38.94,107.86,107.79,29.60967319]
[1744187250913,38.94,107.86,107.8,9.2805]
[1744187251108,0.06306729,107.84,107.81,0.06932025]
[1744187251906,0.06306729,107.84,107.81,9.34872025]
[1744187252114,0.06306729,107.84,107.81,0.06932025]
[1744187252508,9.2786,107.83,107.81,0.06932025]
[1744187253315,0.06306729,107.84,107.81,0.06932025]
[1744187253717,38.94,107.83,107.76,4.4709]
[1744187254015,9.2821,107.79,107.76,4.4709]
[1744187254312,9.2828,107.78,107.76,9.2836]
[1744187254819,0.06334513,107.78,107.76,0.06954014]
[1744187255019,38.94,107.83,107.76,29.67921333]
[1744187255219,38.94,107.83,107.77,47.9547]
[1744187255413,4.5028,107.87,107.8,29.60967319]
[1744187255619,4.5028,107.87,107.81,38.94]
[1744187255822,13.7782,107.87,107.84,9.277]
[1744187256020,4.5028,107.87,107.81,38.94]
[1744187256218,4.56573468,107.87,107.84,0.06105891]
[1744187257018,9.2765,107.85,107.84,0.06105891]
[1744187258718,4.56573468,107.87,107.77,38.62437319]
[1744187259122,4.5028,107.87,107.77,9.0147]
[1744187259621,9.2789,107.83,107.8,9.2803]
[1744187259919,9.33916769,107.83,107.81,0.05998104]
[1744187260112,0.06026769,107.83,107.81,0.05998104]
[1744187261422,9.2791,107.82,107.81,0.05998104]
[1744187269835,9.2822,107.79,107.76,48.2241]
[1744187270029,4.6198,107.81,107.73,48.1882]
[1744187270333,9.2829,107.78,107.75,9.2847]
[1744187271037,9.34905396,107.78,107.75,9.32877912]
[1744187271935,0.06615396,107.78,107.75,9.32877912]
[1744187273032,0.06615396,107.78,107.75,0.04407912]
[1744187274638,0.06615396,107.78,107.76,9.2836]
[1744187275641,0.06615396,107.78,107.76,9.2835]
[1744187275840,0.06615396,107.78,107.75,0.04407912]
[1744187276034,0.06615396,107.78,107.77,9.2834]
[1744187277743,0.06615396,107.78,107.75,0.04407912]
[1744187277744,43.4608,107.83,107.8,9.2806]
[1744187278239,9.2794,107.82,107.73,9.2482]
[1744187278448,73.07047319,107.83,107.73,9.2482]
[1744187278833,9.2795,107.82,107.77,9.2826]
[1744187279140,0.06069478,107.79,107.77,0.06358685]
[1744187279841,0.06069478,107.79,107.78,9.2825]
[1744187280441,0.06069478,107.79,107.77,0.06358685]
[1744187282144,0.06069478,107.79,107.78,9.2826]
[1744187284240,0.06069478,107.79,107.77,0.06358685]
[1744187284442,9.2826,107.78,107.73,4.7454]
[1744187284744,9.2826,107.78,107.75,9.285]
[1744187285143,9.2826,107.78,107.73,4.7454]
[1744187285340,9.2826,107.78,107.74,9.2853]
[1744187285538,0.06385079,107.77,107.74,0.04664623]
[1744187285847,39.02385079,107.77,107.74,0.04664623]
[1744187286043,9.2875,107.73,107.68,9.2915]
[1744187286244,38.96,107.73,107.67,4.4755]
[1744187286441,68.56967319,107.73,107.65,9.1745]
[1744187286645,9.289,107.71,107.65,9.1745]
[1744187286944,27.2418,107.72,107.65,9.1745]
[1744187287149,0.06153501,107.69,107.65,9.1745]
[1744187287346,0.06153501,107.69,107.67,9.2917]
[1744187287645,0.06153501,107.69,107.65,9.1745]
[1744187287848,0.06153501,107.69,107.68,9.2912]
[1744187288548,22.84,107.72,107.71,9.2886]
[1744187289645,22.84,107.72,107.7,0.06120536]
[1744187290150,32.1281,107.72,107.7,0.06120536]
[1744187290451,22.84,107.72,107.7,0.06120536]
[1744187290742,32.1283,107.72,107.7,0.06120536]
[1744187291351,9.2886,107.71,107.7,0.06120536]
[1744187291954,9.2905,107.69,107.65,566.4651]
[1744187292148,9.2905,107.69,107.65,13.8262]
[1744187293053,0.05954583,107.68,107.66,9.2925]
[1744187294049,0.05954583,107.68,107.63,4.5412]
[1744187294352,9.2944,107.65,107.61,9.2943]
[1744187294755,9.36322619,107.64,107.61,4.6589]
[1744187294951,0.06802619,107.64,107.61,4.6589]
[1744187295154,0.06802619,107.64,107.59,9.2986]
[1744187295346,9.2959,107.63,107.59,9.2986]
[1744187295545,39.02802619,107.64,107.6,9.2977]
[1744187295853,48.2553,107.64,107.6,9.2977]
[1744187296053,0.06762583,107.63,107.59,9.2985]
[1744187296254,0.06762583,107.63,107.58,4.6184]
[1744187297257,0.06762583,107.63,107.61,9.2968]
[1744187297650,0.06762583,107.63,107.58,4.6184]
[1744187297857,0.06762583,107.63,107.6,9.2977]
[1744187298458,0.06762583,107.63,107.58,4.6184]
[1744187299457,9.2969,107.62,107.59,9.299]
[1744187300254,9.2969,107.62,107.58,4.6184]
[1744187300454,9.36362583,107.63,107.58,4.6184]
[1744187300657,9.36362583,107.63,107.59,9.2981]
[1744187300850,0.06762583,107.63,107.58,4.6184]
[1744187302757,0.06762583,107.63,107.61,9.2969]
[1744187302959,0.06762583,107.63,107.58,4.6184]
[1744187304062,0.06762583,107.63,107.56,9.2444]
[1744187304256,29.60967319,107.63,107.56,9.2444]
[1744187304562,0.06823487,107.61,107.56,9.2444]
[1744187304753,39.06823487,107.61,107.56,9.2444]
[1744187305363,9.2987,107.6,107.56,9.2444]
[1744187306465,9.2987,107.6,107.57,9.3004]
[1744187306762,48.36583487,107.61,107.56,9.2444]
[1744187306964,39.06823487,107.61,107.56,9.2444]
[1744187307259,9.2982,107.6,107.57,9.3001]
[1744187307559,39.06823487,107.61,107.57,9.3004]
[1744187307963,39.06823487,107.61,107.56,9.2444]
[1744187308561,39.06823487,107.61,107.58,9.2992]
[1744187309065,39.06823487,107.61,107.59,9.2987]
[1744187309466,48.36553487,107.61,107.59,9.2987]
[1744187309964,48.36553487,107.61,107.58,9.2994]
[1744187310664,39.06823487,107.61,107.59,9.2989]
[1744187310865,39.06823487,107.61,107.56,9.2444]
[1744187311159,0.06823487,107.61,107.56,9.2444]
[1744187311352,0.06823487,107.61,107.57,39.0]
[1744187311958,0.06823487,107.61,107.6,9.2981]
[1744187312453,0.06823487,107.61,107.57,39.0]
[1744187313063,39.0,107.65,107.58,29.60967319]
[1744187313266,4.6101,107.66,107.58,29.60967319]
[1744187313461,39.0,107.68,107.6,29.60967319]
[1744187313671,39.0,107.68,107.65,9.2932]
[1744187314268,48.35993714,107.68,107.65,9.3552232]
[1744187314570,39.06823714,107.68,107.65,0.0620232]
[1744187315158,9.2929,107.66,107.65,0.0620232]
[1744187319070,39.06823714,107.68,107.65,0.0620232]
[1744187320079,29.60967319,107.67,107.59,4.6715]
[1744187320473,29.60967319,107.67,107.6,9.2973]
[1744187320671,4.6798,107.66,107.6,9.2973]
[1744187320874,9.2956,107.63,107.6,9.2973]
[1744187321073,38.98,107.65,107.59,4.6715]
[1744187321074,38.98,107.65,107.59,13.9699]
[1744187321275,9.2975,107.61,107.58,39.0]
[1744187321469,38.98,107.62,107.57,13.8682]
[1744187321672,0.06984612,107.61,107.57,13.8682]
[1744187321874,9.36754612,107.61,107.57,13.8682]
[1744187322076,0.06984612,107.61,107.57,4.5681]
[1744187322680,0.06984612,107.61,107.54,9.5075]
[1744187322878,9.14054612,107.61,107.54,9.5075]
[1744187323174,9.3002,107.58,107.55,9.302]
[1744187323479,68.65958347,107.59,107.49,38.98]
[1744187323673,9.3037,107.54,107.5,9.3061]
[1744187323974,0.06723922,107.55,107.47,13.9807]
[1744187324180,38.98,107.56,107.49,9.3072]
[1744187324376,0.06637824,107.52,107.49,9.3072]
[1744187324878,0.06637824,107.52,107.48,38.98]
[1744187325779,0.06637824,107.52,107.49,9.3068]
[1744187326182,0.06637824,107.52,107.48,38.98]
[1744187327982,0.06637824,107.52,107.5,9.306]
[1744187328981,0.06637824,107.52,107.48,39.0]
[1744187329673,0.06637824,107.52,107.51,9.3059]
[1744187330685,0.06637824,107.52,107.5,9.3063]
[1744187330881,0.06637824,107.52,107.48,39.0]
[1744187331080,0.06637824,107.52,107.51,9.3059]
[1744187331280,0.06637824,107.52,107.48,39.0]
[1744187333089,0.06637824,107.52,107.51,9.3059]
[1744187334186,0.06637824,107.52,107.48,39.0]
[1744187336098,9.37177824,107.52,107.48,39.0]
[1744187336297,9.37177824,107.52,107.49,9.3072]
[1744187336498,9.3068,107.5,107.47,9.242]
[1744187336686,68.62967319,107.53,107.47,18.551]
[1744187336891,0.06781265,107.5,107.47,9.242]
[1744187337393,0.06781265,107.5,107.47,18.5508]
[1744187337995,0.06781265,107.5,107.47,9.242]
[1744187338497,0.06781265,107.5,107.49,9.3076]
[1744187339498,0.06781265,107.5,107.48,9.3082]
[1744187339999,0.06781265,107.5,107.49,9.3076]
[1744187340798,0.06781265,107.5,107.48,9.308]
[1744187341195,0.06781265,107.5,107.47,9.242]
[1744187341395,0.06781265,107.5,107.47,9.3088]
[1744187341791,9.37491265,107.5,107.47,9.3088]
[1744187342301,0.06781265,107.5,107.48,9.3078]
[1744187342599,0.06781265,107.5,107.46,39.02]
[1744187343004,0.06781265,107.5,107.49,9.3076]
[1744187347505,0.06781265,107.5,107.46,39.02]
[1744187348007,0.06781265,107.5,107.48,9.3079]
[1744187348204,0.06781265,107.5,107.46,39.02]
[1744187349206,9.37461265,107.5,107.44,13.4222]
[1744187349704,9.37461265,107.5,107.44,22.7337]
[1744187350906,9.3077,107.49,107.44,22.7337]
[1744187351408,0.07065324,107.48,107.44,22.7337]
[1744187352907,0.07065324,107.48,107.44,13.4222]
[1744187353507,9.37915324,107.48,107.44,13.4222]
[1744187353706,0.07065324,107.48,107.44,13.4222]
[1744187354606,9.3097,107.47,107.44,13.4222]
[1744187355008,0.07065324,107.48,107.44,9.0735]
[1744187355209,9.3102,107.46,107.44,9.0735]
[1744187356109,9.3098,107.47,107.44,9.0735]
[1744187356313,0.07065324,107.48,107.44,9.0735]
[1744187356608,9.3105,107.46,107.44,9.0735]
[1744187356805,0.07065324,107.48,107.44,9.0735]
[1744187357512,9.3102,107.46,107.44,9.0735]
[1744187359414,9.3111,107.45,107.42,48.333]
[1744187359719,62.21000173,107.5,107.42,48.333]
[1744187359910,0.07110445,107.45,107.42,48.333]
[1744187360513,9.38250445,107.45,107.42,48.333]
[1744187360917,9.38250445,107.45,107.42,39.02]
[1744187361214,0.07110445,107.45,107.42,39.02]
[1744187361414,0.07110445,107.45,107.41,4.7888]
[1744187361609,9.3125,107.44,107.41,4.7888]
[1744187361917,0.07110445,107.45,107.4,48.077]
[1744187362216,0.07110445,107.45,107.4,43.7442]
[1744187362415,9.3125,107.44,107.4,53.0592]
[1744187363420,9.38250445,107.45,107.41,9.3145]
[1744187363819,9.38250445,107.45,107.4,43.7442]
[1744187364216,9.312,107.44,107.4,53.059]
[1744187364621,0.07110445,107.45,107.4,43.7442]
[1744187364921,0.07110445,107.45,107.43,9.3127]
[1744187366316,0.07110445,107.45,107.44,9.3119]
[1744187366525,99.61121317,107.5,107.43,57.74220173]
[1744187366820,9.3088,107.48,107.45,9.3107]
[1744187367516,9.3097,107.47,107.44,9.3115]
[1744187367720,9.3097,107.47,107.45,0.06107325]
[1744187368021,9.37644103,107.48,107.45,0.06107325]
[1744187368317,0.06744103,107.48,107.45,0.06107325]
[1744187368621,0.06744103,107.48,107.46,9.3097]
[1744187370225,0.06744103,107.48,107.47,9.3093]
[1744187371827,0.06744103,107.48,107.45,0.06107325]
[1744187372325,9.3096,107.47,107.45,0.06107325]
[1744187373427,57.74220173,107.46,107.36,1.61958393]
[1744187373624,18.70220173,107.44,107.35,8.9374]
[1744187373825,39.04,107.43,107.35,8.9374]
[1744187374025,9.3147,107.41,107.36,9.3185]
[1744187374420,39.04,107.43,107.35,8.9374]
[1744187374732,0.06239325,107.4,107.36,57.72220173]
[1744187375121,0.06239325,107.4,107.38,9.3171]
[1744187375321,0.06239325,107.4,107.36,57.72220173]
[1744187375522,0.06239325,107.4,107.38,9.3168]
[1744187376331,0.06239325,107.4,107.37,9.3175]
[1744187376525,0.06239325,107.4,107.36,39.02]
[1744187377526,9.3169,107.39,107.36,39.02]
[1744187377723,0.06239325,107.4,107.36,39.02]
[1744187378126,9.3164,107.39,107.36,39.02]
[1744187379030,9.3164,107.39,107.36,48.3388]
[1744187379829,9.3164,107.39,107.36,39.02]